Workbook

Sheet 表１
A1: 別表１－１ 贈与等報告書の提出件数内訳（各省各庁全体）
I2: (単位：件)
A3: 府省等名 | B3: 金銭、物品等の | D3: 飲食の提供等 | F3: 報酬 ※１ | H3: 合計
B4: 供与 | C4: うち２万 | E4: うち２万 | G4: うち２万 | I4: うち２万
C5: 円超 | E5: 円超 | G5: 円超 | I5: 円超
A6: 会計検査院 | B6: =B76+B146 -> 5 | C6: 0 | D6: 20 | E6: 2 | F6: 27 | G6: 24 | H6: =B6+D6+F6 -> 52 | I6: =C6+E6+G6 -> 26
A7: 内閣官房 | B7: 5 | C7: 2 | D7: 20 | E7: 0 | F7: 34 | G7: 26 | H7: =B7+D7+F7 -> 59 | I7: =C7+E7+G7 -> 28
A8: 内閣法制局 | B8: 0 | C8: 0 | D8: 7 | E8: 0 | F8: 67 | G8: 9 | H8: 74 | I8: 9
A9: 人事院 | B9: 2 | C9: 0 | D9: 4 | E9: 0 | F9: 7 | G9: 7 | H9: 13 | I9: 7
A10: 内閣府 | B10: 3 | C10: 2 | D10: 56 | E10: 3 | F10: 41 | G10: 21 | H10: 100 | I10: 26
A11: 宮内庁 | B11: 0 | C11: 0 | D11: 0 | E11: 0 | F11: 39 | G11: 17 | H11: 39 | I11: 17
A12: 公正取引委員会 | B12: 15 | C12: 0 | D12: 2 | E12: 0 | F12: 6 | G12: 3 | H12: 23 | I12: 3
A13: 国家公安委員会 | B13: 8 | C13: 1 | D13: 11 | E13: 1 | F13: 34 | G13: 23 | H13: 53 | I13: 25
A14: 警察庁 | B14: 11 | C14: 3 | D14: 20 | E14: 2 | F14: 154 | G14: 110 | H14: 185 | I14: 115
A15: 個人情報保護委員会 | B15: 0 | C15: 0 | D15: 0 | E15: 0 | F15: 0 | G15: 0 | H15: 0 | I15: 0
A16: カジノ管理委員会 | B16: =B86+B156 -> 0 | C16: 0 | D16: 0 | E16: 0 | F16: 1 | G16: 0 | H16: =B16+D16+F16 -> 1 | I16: =C16+E16+G16 -> 0
A17: 金融庁 | B17: 5 | C17: 0 | D17: 158 | E17: 54 | F17: 1 | G17: 0 | H17: 164 | I17: 54
A18: 消費者庁 | B18: 3 | C18: 1 | D18: 5 | E18: 2 | F18: 2 | G18: 2 | H18: 10 | I18: 5
A19: デジタル庁 | B19: 0 | C19: 0 | D19: 7 | E19: 0 | F19: 10 | G19: 6 | H19: =B19+D19+F19 -> 17 | I19: =C19+E19+G19 -> 6
A20: 復興庁 | B20: 1 | C20: 0 | D20: 4 | E20: 3 | F20: 2 | G20: 2 | H20: 7 | I20: 5
A21: 総務省 | B21: 13 | C21: 0 | D21: 130 | E21: 9 | F21: 247 | G21: 201 | H21: 390 | I21: 210
A22: 公害等調整委員会 | B22: 0 | C22: 0 | D22: 0 | E22: 0 | F22: 2 | G22: 0 | H22: 2 | I22: 0
A23: 消防庁 | B23: 1 | C23: 0 | D23: 1 | E23: 0 | F23: 25 | G23: 15 | H23: 27 | I23: 15
A24: 法務省 | B24: 43 | C24: 4 | D24: 107 | E24: 0 | F24: 668 | G24: 348 | H24: 818 | I24: 352
A25: 出入国在留管理庁 | B25: 35 | C25: 2 | D25: 9 | E25: 0 | F25: 1 | G25: 1 | H25: =B25+D25+F25 -> 45 | I25: =C25+E25+G25 -> 3
A26: 公安審査委員会 | B26: =B96+B166 -> 0 | C26: 0 | D26: 0 | E26: 0 | F26: 0 | G26: 0 | H26: =B26+D26+F26 -> 0 | I26: =C26+E26+G26 -> 0
A27: 公安調査庁 | B27: 0 | C27: 0 | D27: 2 | E27: 0 | F27: 3 | G27: 3 | H27: 5 | I27: 3
A28: 外務省 | B28: 219 | C28: 41 | D28: 517 | E28: 64 | F28: 84 | G28: 49 | H28: 820 | I28: 154
A29: 財務省 | B29: 9 | C29: 2 | D29: 175 | E29: 7 | F29: 80 | G29: 67 | H29: 264 | I29: 76
A30: 国税庁 | B30: 41 | C30: 6 | D30: 378 | E30: 11 | F30: 208 | G30: 185 | H30: 627 | I30: 202
A31: 文部科学省 | B31: 22 | C31: 0 | D31: 99 | E31: 23 | F31: 541 | G31: 343 | H31: 662 | I31: 366
A32: スポーツ庁 | B32: 16 | C32: 2 | D32: 22 | E32: 8 | F32: 6 | G32: 6 | H32: 44 | I32: 16
A33: 文化庁 | B33: 6 | C33: 1 | D33: 16 | E33: 5 | F33: 52 | G33: 37 | H33: 74 | I33: 43
A34: 厚生労働省 | B34: 13 | C34: 4 | D34: 173 | E34: 4 | F34: 950 | G34: 542 | H34: 1136 | I34: 550
A35: 中央労働委員会 | B35: 7 | C35: 0 | D35: 4 | E35: 0 | F35: 0 | G35: 0 | H35: 11 | I35: 0
A36: 農林水産省 | B36: =B106+B176 -> 61 | C36: 4 | D36: 481 | E36: 70 | F36: 72 | G36: 37 | H36: 614 | I36: 111
A37: 林野庁 | B37: 0 | C37: 0 | D37: 170 | E37: 3 | F37: 2 | G37: 2 | H37: 172 | I37: 5
A38: 水産庁 | B38: 3 | C38: 0 | D38: 51 | E38: 6 | F38: 0 | G38: 0 | H38: 54 | I38: 6
A39: 経済産業省 | B39: 6 | C39: 1 | D39: 579 | E39: 51 | F39: 75 | G39: 68 | H39: 660 | I39: 120
A40: 資源エネルギー庁 | B40: 0 | C40: 0 | D40: 6 | E40: 2 | F40: 1 | G40: 0 | H40: 7 | I40: 2
A41: 特許庁 | B41: 1 | C41: 0 | D41: 8 | E41: 0 | F41: 13 | G41: 9 | H41: 22 | I41: 9
A42: 中小企業庁 | B42: 3 | C42: 0 | D42: 10 | E42: 3 | F42: 0 | G42: 0 | H42: 13 | I42: 3
A43: 国土交通省 | B43: 50 | C43: 2 | D43: 2155 | E43: 68 | F43: 162 | G43: 88 | H43: 2367 | I43: 158
A44: 観光庁 | B44: 7 | C44: 1 | D44: 74 | E44: 5 | F44: 6 | G44: 3 | H44: 87 | I44: 9
A45: 気象庁 | B45: 12 | C45: 7 | D45: 2 | E45: 1 | F45: 17 | G45: 6 | H45: 31 | I45: 14
A46: 運輸安全委員会 | B46: =B116+B186 -> 0 | C46: 0 | D46: 9 | E46: 1 | F46: 0 | G46: 0 | H46: 9 | I46: 1
A47: 海上保安庁 | B47: 2 | C47: 2 | D47: 82 | E47: 3 | F47: 10 | G47: 6 | H47: 94 | I47: 11
A48: 環境省 | B48: 2 | C48: 0 | D48: 72 | E48: 0 | F48: 31 | G48: 18 | H48: 105 | I48: 18
A49: 原子力規制委員会 | B49: 0 | C49: 0 | D49: 2 | E49: 0 | F49: 1 | G49: 0 | H49: 3 | I49: 0
A50: 防衛省 | B50: 0 | C50: 0 | D50: 0 | E50: 0 | F50: 0 | G50: 0 | H50: 0 | I50: 0
A51: 小計① | B51: =SUM(B6:B50) -> 630 | C51: 88 | D51: 5648 | E51: 411 | F51: 3682 | G51: 2284 | H51: 9960 | I51: 2783
A53: 別表１－２ 贈与等報告書の提出件数内訳（行政執行法人全体）
I54: (単位：件)
A55: 行政執行法人名 | B55: 金銭、物品等の | D55: 飲食の提供等 | F55: 報酬 ※１ | H55: 合計
B56: 供与 | C56: うち２万 | E56: うち２万 | G56: うち２万 | I56: うち２万
C57: 円超 | E57: 円超 | G57: 円超 | I57: 円超
A58: 独立行政法人国立公文書館 | B58: =B128+B198 -> 0 | C58: 0 | D58: 0 | E58: 0 | F58: 0 | G58: 0 | H58: =B58+D58+F58 -> 0 | I58: =C58+E58+G58 -> 0
A59: 独立行政法人統計センター | B59: 0 | C59: 0 | D59: 0 | E59: 0 | F59: 1 | G59: 1 | H59: =B59+D59+F59 -> 1 | I59: =C59+E59+G59 -> 1
A60: 独立行政法人造幣局 | B60: 0 | C60: 0 | D60: 0 | E60: 0 | F60: 0 | G60: 0 | H60: 0 | I60: 0
A61: 独立行政法人国立印刷局 | B61: 0 | C61: 0 | D61: 0 | E61: 0 | F61: 0 | G61: 0 | H61: 0 | I61: 0
A62: 独立行政法人農林水産消費安全技術センター | B62: 1 | C62: 0 | D62: 2 | E62: 0 | F62: 0 | G62: 0 | H62: 3 | I62: 0
A63: 独立行政法人製品評価技術基盤機構 | B63: 0 | C63: 0 | D63: 0 | E63: 0 | F63: 0 | G63: 0 | H63: 0 | I63: 0
A64: 独立行政法人駐留軍等労働者労務管理機構 | B64: 0 | C64: 0 | D64: 0 | E64: 0 | F64: 0 | G64: 0 | H64: 0 | I64: 0
A65: 小計② | B65: =SUM(B58:B64) -> 1 | C65: 0 | D65: 2 | E65: 0 | F65: 1 | G65: 1 | H65: 4 | I65: 1
A67: 合計（小計①＋小計②） | B67: =B51+B65 -> 631 | C67: 88 | D67: 5650 | E67: 411 | F67: 3683 | G67: 2285 | H67: 9964 | I67: 2784
A68: 割合 ※２ | B68: =B67/$H67 -> 0.06332798073 | D68: =D67/$H67 -> 0.5670413489 | F68: =F67/$H67 -> 0.3696306704
A69: ※１ 報酬とは、原稿料、講演料等である。 | I69: (贈与等報告書を提出すべき職員に係る報告書の件数に占める割合(％))
A70: ※２ 割合は、小数点第二位を四捨五入しているため合計が100％にはならないことがある。
A71: 別表１－３ 贈与等報告書の提出件数内訳（各省各庁指定職未満）
I72: (単位：件)
A73: 府省等名 | B73: 金銭、物品等の | D73: 飲食の提供等 | F73: 報酬 ※１ | H73: 合計
B74: 供与 | C74: うち２万 | E74: うち２万 | G74: うち２万 | I74: うち２万
C75: 円超 | E75: 円超 | G75: 円超 | I75: 円超
A76: 会計検査院 | B76: 4 | C76: 0 | D76: 8 | E76: 2 | F76: 26 | G76: 24 | H76: =SUM(B76,D76,F76) -> 38 | I76: =SUM(C76,E76,G76) -> 26
A77: 内閣官房 | B77: 3 | C77: 1 | D77: 5 | E77: 0 | F77: 29 | G77: 23 | H77: 37 | I77: 24
A78: 内閣法制局 | B78: 0 | C78: 0 | D78: 4 | E78: 0 | F78: 66 | G78: 8 | H78: 70 | I78: 8
A79: 人事院 | B79: 2 | C79: 0 | D79: 3 | E79: 0 | F79: 7 | G79: 7 | H79: 12 | I79: 7
A80: 内閣府 | B80: 2 | C80: 1 | D80: 36 | E80: 2 | F80: 13 | G80: 8 | H80: 51 | I80: 11
A81: 宮内庁 | B81: 0 | C81: 0 | D81: 0 | E81: 0 | F81: 39 | G81: 17 | H81: 39 | I81: 17
A82: 公正取引委員会 | B82: 7 | C82: 0 | D82: 2 | E82: 0 | F82: 2 | G82: 0 | H82: 11 | I82: 0
A83: 国家公安委員会 | B83: 5 | C83: 1 | D83: 9 | E83: 0 | F83: 32 | G83: 22 | H83: 46 | I83: 23
A84: 警察庁 | B84: 10 | C84: 3 | D84: 12 | E84: 1 | F84: 142 | G84: 101 | H84: =SUM(B84,D84,F84) -> 164 | I84: =SUM(C84,E84,G84) -> 105
A85: 個人情報保護委員会 | B85: 0 | C85: 0 | D85: 0 | E85: 0 | F85: 0 | G85: 0 | H85: 0 | I85: 0
A86: カジノ管理委員会 | B86: 0 | C86: 0 | D86: 0 | E86: 0 | F86: 1 | G86: 0 | H86: =SUM(B86,D86,F86) -> 1 | I86: =SUM(C86,E86,G86) -> 0
A87: 金融庁 | B87: 4 | C87: 0 | D87: 82 | E87: 30 | F87: 1 | G87: 0 | H87: 87 | I87: 30
A88: 消費者庁 | B88: 2 | C88: 1 | D88: 2 | E88: 1 | F88: 2 | G88: 2 | H88: 6 | I88: 4
A89: デジタル庁 | B89: 0 | C89: 0 | D89: 3 | E89: 0 | F89: 7 | G89: 5 | H89: =SUM(B89,D89,F89) -> 10 | I89: =SUM(C89,E89,G89) -> 5
A90: 復興庁 | B90: 0 | C90: 0 | D90: 2 | E90: 2 | F90: 2 | G90: 2 | H90: 4 | I90: 4
A91: 総務省 | B91: 6 | C91: 0 | D91: 95 | E91: 5 | F91: 231 | G91: 189 | H91: 332 | I91: 194
A92: 公害等調整委員会 | B92: 0 | C92: 0 | D92: 0 | E92: 0 | F92: 2 | G92: 0 | H92: 2 | I92: 0
A93: 消防庁 | B93: 1 | C93: 0 | D93: 0 | E93: 0 | F93: 20 | G93: 11 | H93: 21 | I93: 11
A94: 法務省 | B94: 11 | C94: 3 | D94: 47 | E94: 0 | F94: 401 | G94: 193 | H94: 459 | I94: 196
A95: 出入国在留管理庁 | B95: 16 | C95: 2 | D95: 7 | E95: 0 | F95: 0 | G95: 0 | H95: =SUM(B95,D95,F95) -> 23 | I95: =SUM(C95,E95,G95) -> 2
A96: 公安審査委員会 | B96: 0 | C96: 0 | D96: 0 | E96: 0 | F96: 0 | G96: 0 | H96: =SUM(B96,D96,F96) -> 0 | I96: =SUM(C96,E96,G96) -> 0
A97: 公安調査庁 | B97: 0 | C97: 0 | D97: 2 | E97: 0 | F97: 1 | G97: 1 | H97: 3 | I97: 1
A98: 外務省 | B98: 169 | C98: 32 | D98: 369 | E98: 38 | F98: 71 | G98: 44 | H98: 609 | I98: 114
A99: 財務省 | B99: 4 | C99: 0 | D99: 114 | E99: 3 | F99: 68 | G99: 65 | H99: 186 | I99: 68
A100: 国税庁 | B100: 41 | C100: 6 | D100: 358 | E100: 10 | F100: 208 | G100: 185 | H100: 607 | I100: 201
A101: 文部科学省 | B101: 14 | C101: 0 | D101: 72 | E101: 14 | F101: 525 | G101: 337 | H101: 611 | I101: 351
A102: スポーツ庁 | B102: 4 | C102: 0 | D102: 11 | E102: 4 | F102: 0 | G102: 0 | H102: 15 | I102: 4
A103: 文化庁 | B103: 6 | C103: 1 | D103: 13 | E103: 2 | F103: 35 | G103: 22 | H103: 54 | I103: 25
A104: 厚生労働省 | B104: 13 | C104: 4 | D104: 141 | E104: 2 | F104: 885 | G104: 506 | H104: 1039 | I104: 512
A105: 中央労働委員会 | B105: 5 | C105: 0 | D105: 0 | E105: 0 | F105: 0 | G105: 0 | H105: 5 | I105: 0
A106: 農林水産省 | B106: 46 | C106: 2 | D106: 340 | E106: 45 | F106: 70 | G106: 35 | H106: 456 | I106: 82
A107: 林野庁 | B107: 0 | C107: 0 | D107: 141 | E107: 1 | F107: 2 | G107: 2 | H107: 143 | I107: 3
A108: 水産庁 | B108: 2 | C108: 0 | D108: 37 | E108: 4 | F108: 0 | G108: 0 | H108: =SUM(B108,D108,F108) -> 39 | I108: =SUM(C108,E108,G108) -> 4
A109: 経済産業省 | B109: 1 | C109: 0 | D109: 476 | E109: 36 | F109: 74 | G109: 67 | H109: 551 | I109: 103
A110: 資源エネルギー庁 | B110: 0 | C110: 0 | D110: 6 | E110: 2 | F110: 1 | G110: 0 | H110: 7 | I110: 2
A111: 特許庁 | B111: 1 | C111: 0 | D111: 5 | E111: 0 | F111: 12 | G111: 8 | H111: 18 | I111: =SUM(C111,E111,G111) -> 8
A112: 中小企業庁 | B112: 2 | C112: 0 | D112: 6 | E112: 2 | F112: 0 | G112: 0 | H112: 8 | I112: 2
A113: 国土交通省 | B113: 33 | C113: 2 | D113: 1744 | E113: 37 | F113: 157 | G113: 85 | H113: 1934 | I113: 124
A114: 観光庁 | B114: 1 | C114: 0 | D114: 45 | E114: 2 | F114: 5 | G114: 2 | H114: 51 | I114: 4
A115: 気象庁 | B115: 12 | C115: 7 | D115: 1 | E115: 1 | F115: 17 | G115: 6 | H115: 30 | I115: 14
A116: 運輸安全委員会 | B116: 0 | C116: 0 | D116: 3 | E116: 0 | F116: 0 | G116: 0 | H116: 3 | I116: 0
A117: 海上保安庁 | B117: 0 | C117: 0 | D117: 56 | E117: 1 | F117: 10 | G117: 6 | H117: 66 | I117: 7
A118: 環境省 | B118: 1 | C118: 0 | D118: 44 | E118: 0 | F118: 31 | G118: 18 | H118: 76 | I118: 18
A119: 原子力規制委員会 | B119: 0 | C119: 0 | D119: 2 | E119: 0 | F119: 1 | G119: 0 | H119: 3 | I119: 0
A120: 防衛省 | B120: 0 | C120: 0 | D120: 0 | E120: 0 | F120: 0 | G120: 0 | H120: 0 | I120: 0
A121: 小計③ | B121: =SUM(B76:B120) -> 428 | C121: 66 | D121: 4303 | E121: 247 | F121: 3196 | G121: 2001 | H121: 7927 | I121: 2314
A123: 別表１－４ 贈与等報告書の提出件数内訳（行政執行法人職員のうち国家公務員倫理法第２条第３項第４号に該当しない者）
I124: (単位：件)
A125: 行政執行法人名 | B125: 金銭、物品等の | D125: 飲食の提供等 | F125: 報酬 ※１ | H125: 合計
B126: 供与 | C126: うち２万 | E126: うち２万 | G126: うち２万 | I126: うち２万
C127: 円超 | E127: 円超 | G127: 円超 | I127: 円超
A128: 独立行政法人国立公文書館 | B128: 0 | C128: 0 | D128: 0 | E128: 0 | F128: 0 | G128: 0 | H128: =SUM(B128,D128,F128) -> 0 | I128: 0
A129: 独立行政法人統計センター | B129: 0 | C129: 0 | D129: 0 | E129: 0 | F129: 1 | G129: 1 | H129: 1 | I129: 1
A130: 独立行政法人造幣局 | B130: 0 | C130: 0 | D130: 0 | E130: 0 | F130: 0 | G130: 0 | H130: 0 | I130: 0
A131: 独立行政法人国立印刷局 | B131: 0 | C131: 0 | D131: 0 | E131: 0 | F131: 0 | G131: 0 | H131: =SUM(B131,D131,F131) -> 0 | I131: 0
A132: 独立行政法人農林水産消費安全技術センター | B132: 1 | C132: 0 | D132: 2 | E132: 0 | F132: 0 | G132: 0 | H132: 3 | I132: 0
A133: 独立行政法人製品評価技術基盤機構 | B133: 0 | C133: 0 | D133: 0 | E133: 0 | F133: 0 | G133: 0 | H133: 0 | I133: 0
A134: 独立行政法人駐留軍等労働者労務管理機構 | B134: 0 | C134: 0 | D134: 0 | E134: 0 | F134: 0 | G134: 0 | H134: 0 | I134: 0
A135: 小計④ | B135: =SUM(B128:B134) -> 1 | C135: 0 | D135: 2 | E135: 0 | F135: 1 | G135: 1 | H135: 4 | I135: 1
A137: 合計（小計③＋小計④） | B137: =B121+B135 -> 429 | C137: 66 | D137: 4305 | E137: 247 | F137: 3197 | G137: 2002 | H137: 7931 | I137: 2315
A138: 割合 ※２ | B138: =B137/$H137 -> 0.05409153953 | D138: =D137/$H137 -> 0.5428067079 | F138: =F137/$H137 -> 0.4031017526
A139: ※１ 報酬とは、原稿料、講演料等である。 | I139: (指定職未満の職員に係る報告書の件数に占める割合(％))
A140: ※２ 割合は、小数点第二位を四捨五入しているため合計が100％にはならないことがある。
A141: 別表１－５ 贈与等報告書の提出件数内訳（各省各庁指定職以上）
I142: (単位：件)
A143: 府省等名 | B143: 金銭、物品等の | D143: 飲食の提供等 | F143: 報酬 ※１ | H143: 合計
B144: 供与 | C144: うち２万 | E144: うち２万 | G144: うち２万 | I144: うち２万
C145: 円超 | E145: 円超 | G145: 円超 | I145: 円超
A146: 会計検査院 | B146: 1 | C146: 0 | D146: 12 | E146: 0 | F146: 1 | G146: 0 | H146: =SUM(B146,D146,F146) -> 14 | I146: =SUM(C146,E146,G146) -> 0
A147: 内閣官房 | B147: 2 | C147: 1 | D147: 15 | E147: 0 | F147: 5 | G147: 3 | H147: =SUM(B147,D147,F147) -> 22 | I147: 4
A148: 内閣法制局 | B148: 0 | C148: 0 | D148: 3 | E148: 0 | F148: 1 | G148: 1 | H148: 4 | I148: 1
A149: 人事院 | B149: 0 | C149: 0 | D149: 1 | E149: 0 | F149: 0 | G149: 0 | H149: 1 | I149: 0
A150: 内閣府 | B150: 1 | C150: 1 | D150: 20 | E150: 1 | F150: 28 | G150: 13 | H150: 49 | I150: 15
A151: 宮内庁 | B151: 0 | C151: 0 | D151: 0 | E151: 0 | F151: 0 | G151: 0 | H151: 0 | I151: 0
A152: 公正取引委員会 | B152: 8 | C152: 0 | D152: 0 | E152: 0 | F152: 4 | G152: 3 | H152: 12 | I152: 3
A153: 国家公安委員会 | B153: 3 | C153: 0 | D153: 2 | E153: 1 | F153: 2 | G153: 1 | H153: 7 | I153: 2
A154: 警察庁 | B154: 1 | C154: 0 | D154: 8 | E154: 1 | F154: 12 | G154: 9 | H154: 21 | I154: 10
A155: 個人情報保護委員会 | B155: 0 | C155: 0 | D155: 0 | E155: 0 | F155: 0 | G155: 0 | H155: 0 | I155: 0
A156: カジノ管理委員会 | B156: 0 | C156: 0 | D156: 0 | E156: 0 | F156: 0 | G156: 0 | H156: =SUM(B156,D156,F156) -> 0 | I156: =SUM(C156,E156,G156) -> 0
A157: 金融庁 | B157: 1 | C157: 0 | D157: 76 | E157: 24 | F157: 0 | G157: 0 | H157: 77 | I157: 24
A158: 消費者庁 | B158: 1 | C158: 0 | D158: 3 | E158: 1 | F158: 0 | G158: 0 | H158: 4 | I158: 1
A159: デジタル庁 | B159: 0 | C159: 0 | D159: 4 | E159: 0 | F159: 3 | G159: 1 | H159: =SUM(B159,D159,F159) -> 7 | I159: =SUM(C159,E159,G159) -> 1
A160: 復興庁 | B160: 1 | C160: 0 | D160: 2 | E160: 1 | F160: 0 | G160: 0 | H160: 3 | I160: 1
A161: 総務省 | B161: 7 | C161: 0 | D161: 35 | E161: 4 | F161: 16 | G161: 12 | H161: 58 | I161: 16
A162: 公害等調整委員会 | B162: 0 | C162: 0 | D162: 0 | E162: 0 | F162: 0 | G162: 0 | H162: 0 | I162: 0
A163: 消防庁 | B163: 0 | C163: 0 | D163: 1 | E163: 0 | F163: 5 | G163: 4 | H163: 6 | I163: 4
A164: 法務省 | B164: 32 | C164: 1 | D164: 60 | E164: 0 | F164: 267 | G164: 155 | H164: 359 | I164: 156
A165: 出入国在留管理庁 | B165: 19 | C165: 0 | D165: 2 | E165: 0 | F165: 1 | G165: 1 | H165: =SUM(B165,D165,F165) -> 22 | I165: =SUM(C165,E165,G165) -> 1
A166: 公安審査委員会 | B166: 0 | C166: 0 | D166: 0 | E166: 0 | F166: 0 | G166: 0 | H166: =SUM(B166,D166,F166) -> 0 | I166: =SUM(C166,E166,G166) -> 0
A167: 公安調査庁 | B167: 0 | C167: 0 | D167: 0 | E167: 0 | F167: 2 | G167: 2 | H167: 2 | I167: 2
A168: 外務省 | B168: 50 | C168: 9 | D168: 148 | E168: 26 | F168: 13 | G168: 5 | H168: =SUM(B168,D168,F168) -> 211 | I168: 40
A169: 財務省 | B169: 5 | C169: 2 | D169: 61 | E169: 4 | F169: 12 | G169: 2 | H169: 78 | I169: 8
A170: 国税庁 | B170: 0 | C170: 0 | D170: 20 | E170: 1 | F170: 0 | G170: 0 | H170: 20 | I170: 1
A171: 文部科学省 | B171: 8 | C171: 0 | D171: 27 | E171: 9 | F171: 16 | G171: 6 | H171: 51 | I171: 15
A172: スポーツ庁 | B172: 12 | C172: 2 | D172: 11 | E172: 4 | F172: 6 | G172: 6 | H172: =SUM(B172,D172,F172) -> 29 | I172: =SUM(C172,E172,G172) -> 12
A173: 文化庁 | B173: 0 | C173: 0 | D173: 3 | E173: 3 | F173: 17 | G173: 15 | H173: =SUM(B173,D173,F173) -> 20 | I173: =SUM(C173,E173,G173) -> 18
A174: 厚生労働省 | B174: 0 | C174: 0 | D174: 32 | E174: 2 | F174: 65 | G174: 36 | H174: 97 | I174: 38
A175: 中央労働委員会 | B175: 2 | C175: 0 | D175: 4 | E175: 0 | F175: 0 | G175: 0 | H175: 6 | I175: 0
A176: 農林水産省 | B176: 15 | C176: 2 | D176: 141 | E176: 25 | F176: 2 | G176: 2 | H176: 158 | I176: 29
A177: 林野庁 | B177: 0 | C177: 0 | D177: 29 | E177: 2 | F177: 0 | G177: 0 | H177: 29 | I177: 2
A178: 水産庁 | B178: 1 | C178: 0 | D178: 14 | E178: 2 | F178: 0 | G178: 0 | H178: 15 | I178: 2
A179: 経済産業省 | B179: 5 | C179: 1 | D179: 103 | E179: 15 | F179: 1 | G179: 1 | H179: 109 | I179: 17
A180: 資源エネルギー庁 | B180: 0 | C180: 0 | D180: 0 | E180: 0 | F180: 0 | G180: 0 | H180: 0 | I180: 0
A181: 特許庁 | B181: 0 | C181: 0 | D181: 3 | E181: 0 | F181: 1 | G181: 1 | H181: 4 | I181: 1
A182: 中小企業庁 | B182: 1 | C182: 0 | D182: 4 | E182: 1 | F182: 0 | G182: 0 | H182: 5 | I182: 1
A183: 国土交通省 | B183: 17 | C183: 0 | D183: 411 | E183: 31 | F183: 5 | G183: 3 | H183: =SUM(B183,D183,F183) -> 433 | I183: =SUM(C183,E183,G183) -> 34
A184: 観光庁 | B184: 6 | C184: 1 | D184: 29 | E184: 3 | F184: 1 | G184: 1 | H184: 36 | I184: 5
A185: 気象庁 | B185: 0 | C185: 0 | D185: 1 | E185: 0 | F185: 0 | G185: 0 | H185: 1 | I185: 0
A186: 運輸安全委員会 | B186: 0 | C186: 0 | D186: 6 | E186: 1 | F186: 0 | G186: 0 | H186: 6 | I186: 1
A187: 海上保安庁 | B187: 2 | C187: 2 | D187: 26 | E187: 2 | F187: 0 | G187: 0 | H187: 28 | I187: 4
A188: 環境省 | B188: 1 | C188: 0 | D188: 28 | E188: 0 | F188: 0 | G188: 0 | H188: 29 | I188: 0
A189: 原子力規制委員会 | B189: 0 | C189: 0 | D189: 0 | E189: 0 | F189: 0 | G189: 0 | H189: 0 | I189: 0
A190: 防衛省 | B190: 0 | C190: 0 | D190: 0 | E190: 0 | F190: 0 | G190: 0 | H190: 0 | I190: 0
A191: 小計⑤ | B191: =SUM(B146:B190) -> 202 | C191: 22 | D191: 1345 | E191: 164 | F191: 486 | G191: 283 | H191: 2033 | I191: 469
A193: 別表１－６ 贈与等報告書の提出件数内訳（行政執行法人のうち国家公務員倫理法第２条第３項第４号に該当する者）
I194: (単位：件)
A195: 行政執行法人名 | B195: 金銭、物品等の | D195: 飲食の提供等 | F195: 報酬 ※１ | H195: 合計
B196: 供与 | C196: うち２万 | E196: うち２万 | G196: うち２万 | I196: うち２万
C197: 円超 | E197: 円超 | G197: 円超 | I197: 円超
A198: 独立行政法人国立公文書館 | B198: 0 | C198: 0 | D198: 0 | E198: 0 | F198: 0 | G198: 0 | H198: =SUM(B198,D198,F198) -> 0 | I198: 0
A199: 独立行政法人統計センター | B199: 0 | C199: 0 | D199: 0 | E199: 0 | F199: 0 | G199: 0 | H199: 0 | I199: 0
A200: 独立行政法人造幣局 | B200: 0 | C200: 0 | D200: 0 | E200: 0 | F200: 0 | G200: 0 | H200: 0 | I200: 0
A201: 独立行政法人国立印刷局 | B201: 0 | C201: 0 | D201: 0 | E201: 0 | F201: 0 | G201: 0 | H201: 0 | I201: 0
A202: 独立行政法人農林水産消費安全技術センター | B202: 0 | C202: 0 | D202: 0 | E202: 0 | F202: 0 | G202: 0 | H202: 0 | I202: 0
A203: 独立行政法人製品評価技術基盤機構 | B203: 0 | C203: 0 | D203: 0 | E203: 0 | F203: 0 | G203: 0 | H203: 0 | I203: 0
A204: 独立行政法人駐留軍等労働者労務管理機構 | B204: 0 | C204: 0 | D204: 0 | E204: 0 | F204: 0 | G204: 0 | H204: 0 | I204: 0
A205: 小計⑥ | B205: =SUM(B198:B204) -> 0 | C205: 0 | D205: 0 | E205: 0 | F205: 0 | G205: 0 | H205: 0 | I205: 0
... 4 more rows

Sheet 表２
A1: 別表２ 株取引等報告書及び所得等報告書の提出件数
C2: (単位：件)
A3: 府省等名 | B3: 株取引等報告書 | C3: 所得等報告書
A5: 会計検査院 | B5: 2 | C5: 17
A6: 内閣官房 | B6: 0 | C6: 51
A7: 内閣法制局 | B7: 1 | C7: 6
A8: 人事院 | B8: 1 | C8: 13
A9: 内閣府 | B9: 6 | C9: 54
A10: 宮内庁 | B10: 1 | C10: 8
A11: 公正取引委員会 | B11: 1 | C11: 8
A12: 国家公安委員会 | B12: 3 | C12: 20
A13: 警察庁 | B13: 3 | C13: 27
A14: 個人情報保護委員会 | B14: 0 | C14: 1
A15: カジノ管理委員会 | B15: 0 | C15: 5
A16: 金融庁 | B16: 0 | C16: 15
A17: 消費者庁 | B17: 0 | C17: 4
A18: デジタル庁 | B18: 2 | C18: 10
A19: 復興庁 | B19: 2 | C19: 5
A20: 総務省 | B20: 3 | C20: 42
A21: 公害等調整委員会 | B21: 0 | C21: 1
A22: 消防庁 | B22: 0 | C22: 3
A23: 法務省 | B23: 42 | C23: 771
A24: 出入国在留管理庁 | B24: 1 | C24: 13
A25: 公安審査委員会 | B25: 0 | C25: 0
A26: 公安調査庁 | B26: 1 | C26: 13
A27: 外務省 | B27: 10 | C27: 43
A28: 財務省 | B28: 1 | C28: 49
A29: 国税庁 | B29: 0 | C29: 13
A30: 文部科学省 | B30: 1 | C30: 15
A31: スポーツ庁 | B31: 0 | C31: 2
A32: 文化庁 | B32: 1 | C32: 4
A33: 厚生労働省 | B33: 3 | C33: 47
A34: 中央労働委員会 | B34: 1 | C34: 3
A35: 農林水産省 | B35: 3 | C35: 35
A36: 林野庁 | B36: 1 | C36: 8
A37: 水産庁 | B37: 0 | C37: 4
A38: 経済産業省 | B38: 1 | C38: 37
A39: 資源エネルギー庁 | B39: 0 | C39: 5
A40: 特許庁 | B40: 0 | C40: 6
A41: 中小企業庁 | B41: 0 | C41: 1
A42: 国土交通省 | B42: 6 | C42: 78
A43: 観光庁 | B43: 0 | C43: 2
A44: 気象庁 | B44: 1 | C44: 8
A45: 運輸安全委員会 | B45: 0 | C45: 1
A46: 海上保安庁 | B46: 1 | C46: 12
A47: 環境省 | B47: 1 | C47: 15
A48: 原子力規制委員会 | B48: 0 | C48: 10
A49: 防衛省 | B49: 0 | C49: 0
A50: 小計① | B50: =SUM(B5:B49) -> 100 | C50: =SUM(C5:C49) -> 1485
A53: 行政執行法人名 | B53: 株取引等報告書 | C53: 所得等報告書
A55: 独立行政法人国立公文書館 | B55: 0 | C55: 0
A56: 独立行政法人統計センター | B56: 0 | C56: 0
A57: 独立行政法人造幣局 | B57: 0 | C57: 0
A58: 独立行政法人国立印刷局 | B58: 0 | C58: 0
A59: 独立行政法人農林水産消費安全技術センター | B59: 0 | C59: 0
A60: 独立行政法人製品評価技術基盤機構 | B60: 0 | C60: 0
A61: 独立行政法人駐留軍等労働者労務管理機構 | B61: 0 | C61: 0
A62: 小計② | B62: =SUM(B55:B61) -> 0 | C62: =SUM(C55:C61) -> 0
A65: 合計(小計①＋小計②） | B65: =B50+B62 -> 100 | C65: =C50+C62 -> 1485

Sheet 表３
A1: 別表３ 倫理監督官への届出件数
B2: (単位：件)
A3: 府省等名 | B3: 届出件数
A5: 会計検査院 | B5: 0
A6: 内閣官房 | B6: 1
A7: 内閣法制局 | B7: 0
A8: 人事院 | B8: 0
A9: 内閣府 | B9: 4
A10: 宮内庁 | B10: 0
A11: 公正取引委員会 | B11: 0
A12: 国家公安委員会 | B12: 2
A13: 警察庁 | B13: 4
A14: 個人情報保護委員会 | B14: 0
A15: カジノ管理委員会 | B15: 0
A16: 金融庁 | B16: 3
A17: 消費者庁 | B17: 0
A18: デジタル庁 | B18: 3
A19: 復興庁 | B19: 0
A20: 総務省 | B20: 66
A21: 公害等調整委員会 | B21: 0
A22: 消防庁 | B22: 8
A23: 法務省 | B23: 3
A24: 出入国在留管理庁 | B24: 0
A25: 公安審査委員会 | B25: 0
A26: 公安調査庁 | B26: 0
A27: 外務省 | B27: 15
A28: 財務省 | B28: 13
A29: 国税庁 | B29: 57
A30: 文部科学省 | B30: 23
A31: スポーツ庁 | B31: 9
A32: 文化庁 | B32: 1
A33: 厚生労働省 | B33: 47
A34: 中央労働委員会 | B34: 0
A35: 農林水産省 | B35: 180
A36: 林野庁 | B36: 11
A37: 水産庁 | B37: 22
A38: 経済産業省 | B38: 117
A39: 資源エネルギー庁 | B39: 23
A40: 特許庁 | B40: 0
A41: 中小企業庁 | B41: 9
A42: 国土交通省 | B42: 37
A43: 観光庁 | B43: 14
A44: 気象庁 | B44: 0
A45: 運輸安全委員会 | B45: 0
A46: 海上保安庁 | B46: 0
A47: 環境省 | B47: 9
A48: 原子力規制委員会 | B48: 1
A49: 防衛省 | B49: 0
A50: 小計① | B50: =SUM(B5:B49) -> 682
A53: 行政執行法人名 | B53: 届出件数
A55: 独立行政法人国立公文書館 | B55: 0
A56: 独立行政法人統計センター | B56: 0
A57: 独立行政法人造幣局 | B57: 0
A58: 独立行政法人国立印刷局 | B58: 0
A59: 独立行政法人農林水産消費安全技術センター | B59: 0
A60: 独立行政法人製品評価技術基盤機構 | B60: 0
A61: 独立行政法人駐留軍等労働者労務管理機構 | B61: 0
A62: 小計② | B62: =SUM(B55:B61) -> 0
A65: 合計(小計①＋小計②） | B65: =B50+B62 -> 682

Sheet 表４
A1: 別表４ 倫理監督官の承認の状況
C2: (単位：件)
A3: 府省等名 | B3: 申請件数 | C3: 承認された件数
A5: 会計検査院 | B5: 0 | C5: 0
A6: 内閣官房 | B6: 0 | C6: 0
A7: 内閣法制局 | B7: 0 | C7: 0
A8: 人事院 | B8: 0 | C8: 0
A9: 内閣府 | B9: 0 | C9: 0
A10: 宮内庁 | B10: 0 | C10: 0
A11: 公正取引委員会 | B11: 0 | C11: 0
A12: 国家公安委員会 | B12: 0 | C12: 0
A13: 警察庁 | B13: 0 | C13: 0
A14: 個人情報保護委員会 | B14: 0 | C14: 0
A15: カジノ管理委員会 | B15: 0 | C15: 0
A16: 金融庁 | B16: 0 | C16: 0
A17: 消費者庁 | B17: 0 | C17: 0
A18: デジタル庁 | B18: 0 | C18: 0
A19: 復興庁 | B19: 0 | C19: 0
A20: 総務省 | B20: 5 | C20: 5
A21: 公害等調整委員会 | B21: 0 | C21: 0
A22: 消防庁 | B22: 4 | C22: 4
A23: 法務省 | B23: 0 | C23: 0
A24: 出入国在留管理庁 | B24: 0 | C24: 0
A25: 公安審査委員会 | B25: 0 | C25: 0
A26: 公安調査庁 | B26: 0 | C26: 0
A27: 外務省 | B27: 2 | C27: 2
A28: 財務省 | B28: 0 | C28: 0
A29: 国税庁 | B29: 0 | C29: 0
A30: 文部科学省 | B30: 2 | C30: 2
A31: スポーツ庁 | B31: 0 | C31: 0
A32: 文化庁 | B32: 2 | C32: 2
A33: 厚生労働省 | B33: 16 | C33: 16
A34: 中央労働委員会 | B34: 0 | C34: 0
A35: 農林水産省 | B35: 4 | C35: 4
A36: 林野庁 | B36: 0 | C36: 0
A37: 水産庁 | B37: 0 | C37: 0
A38: 経済産業省 | B38: 0 | C38: 0
A39: 資源エネルギー庁 | B39: 0 | C39: 0
A40: 特許庁 | B40: 0 | C40: 0
A41: 中小企業庁 | B41: 0 | C41: 0
A42: 国土交通省 | B42: 12 | C42: 12
A43: 観光庁 | B43: 0 | C43: 0
A44: 気象庁 | B44: 0 | C44: 0
A45: 運輸安全委員会 | B45: 0 | C45: 0
A46: 海上保安庁 | B46: 0 | C46: 0
A47: 環境省 | B47: 0 | C47: 0
A48: 原子力規制委員会 | B48: 0 | C48: 0
A49: 防衛省 | B49: 0 | C49: 0
A50: 小計① | B50: =SUM(B5:B49) -> 47 | C50: =SUM(C5:C49) -> 47
A53: 行政執行法人名 | B53: 申請件数 | C53: 承認された件数
A55: 独立行政法人国立公文書館 | B55: 0 | C55: 0
A56: 独立行政法人統計センター | B56: 0 | C56: 0
A57: 独立行政法人造幣局 | B57: 0 | C57: 0
A58: 独立行政法人国立印刷局 | B58: 0 | C58: 0
A59: 独立行政法人農林水産消費安全技術センター | B59: 0 | C59: 0
A60: 独立行政法人製品評価技術基盤機構 | B60: 0 | C60: 0
A61: 独立行政法人駐留軍等労働者労務管理機構 | B61: 0 | C61: 0
A62: 小計② | B62: =SUM(B55:B61) -> 0 | C62: =SUM(C55:C61) -> 0
A65: 合計(小計①＋小計②） | B65: =B50+B62 -> 47 | C65: =C50+C62 -> 47
